bitfinex-derivatives/quotes_ETHF0:USTF0_20240924
["timestamp","ask_amount","ask_price","bid_price","bid_amount"]
[1727219407098,0.18794124,2661.3,2661.2,0.37574]
[1727219407299,0.37573,2661.3,2661.1,1.73369879]
[1727219407889,5.7202914,2661.5,2661.1,1.35794879]
[1727219408100,0.37574,2661.3,2661.1,0.37576]
[1727219409694,0.37574,2661.3,2660.9,0.98424879]
[1727219409695,8.0927155,2661.2,2660.9,0.98424879]
[1727219409888,0.93937,2661.2,2660.8,0.98424879]
[1727219410095,0.3664,2661.1,2660.8,0.98424879]
[1727219410294,0.3742,2661.0,2660.9,0.37579]
[1727219410896,0.74217,2661.1,2660.9,0.37579]
[1727219411196,0.37577,2661.1,2660.9,0.37579]
[1727219411397,0.37577,2661.1,2661.0,0.4014]
[1727219411795,2.6930414,2661.4,2661.2,0.37575]
[1727219412000,0.37573,2661.3,2661.0,1.38564879]
[1727219412195,0.74213,2661.4,2661.2,0.37574]
[1727219412795,0.37573,2661.3,2661.2,0.37574]
[1727219413403,0.37573,2661.3,2661.1,1.35999879]
[1727219413804,0.37572,2661.4,2661.2,0.37574]
[1727219413991,0.37572,2661.4,2661.1,0.98424879]
[1727219414307,4.3909114,2661.5,2661.1,0.98424879]
[1727219414605,0.56366736,2661.4,2661.2,0.37575]
[1727219414907,0.37573,2661.4,2661.2,0.37575]
[1727219415299,1.9509114,2661.5,2661.4,0.37572]
[1727219415606,0.3742,2661.6,2661.5,0.3757]
[1727219415798,0.56212413,2661.6,2661.5,0.3757]
[1727219416000,4.3765814,2661.8,2661.5,0.3757]
[1727219416305,0.5635884,2661.7,2661.3,0.98424879]
[1727219416499,0.37568,2661.7,2661.2,4.19204879]
[1727219417091,2.51451401,2661.7,2661.3,0.37572]
[1727219417305,0.37568,2661.7,2661.3,0.37572]
[1727219417506,4.0009114,2661.8,2661.2,4.19204879]
[1727219417804,0.1879171,2661.7,2661.4,0.37571]
[1727219417996,0.1879171,2661.7,2661.5,0.3757]
[1727219418195,2.42567,2661.8,2661.4,0.37571]
[1727219418407,0.37568,2661.7,2661.4,0.37571]
[1727219419117,0.37569,2661.6,2661.3,0.37573]
[1727219419404,0.3862,2661.6,2661.3,0.37573]
[1727219419901,0.76189,2661.6,2661.3,0.37573]
[1727219420607,0.3862,2661.6,2661.2,0.75084]
[1727219420800,0.37571,2661.5,2661.2,0.3751]
[1727219421000,0.37571,2661.5,2661.2,0.75085]
[1727219421001,0.7671,2661.4,2661.2,0.75085]
[1727219422206,0.7671,2661.4,2661.3,0.37573]
[1727219423003,0.37568,2661.7,2661.4,0.37571]
[1727219423312,1.13228,2661.7,2661.4,0.37571]
[1727219423802,1.13228,2661.7,2661.2,0.3751]
[1727219423803,0.7566,2661.7,2661.5,0.3757]
[1727219424004,0.7566,2661.7,2661.6,0.37569]
[1727219424903,0.7566,2661.7,2661.5,0.37569]
[1727219426909,0.7566,2661.7,2661.6,0.37569]
[1727219428013,4.0009114,2662.0,2661.9,0.37565]
[1727219428014,0.7722,2662.0,2661.9,0.37565]
[1727219428314,0.7722,2662.0,2661.8,0.37565]
[1727219431109,0.7722,2662.0,2661.9,0.37565]
[1727219431507,0.4034,2662.0,2661.9,0.37565]
[1727219431710,3.2078,2662.2,2662.1,0.37562]
[1727219432009,0.7682,2662.3,2662.1,0.37562]
[1727219432203,0.7682,2662.3,2662.1,0.37561]
[1727219432402,0.7682,2662.3,2662.2,0.3757]
[1727219434608,0.3816,2662.4,2662.2,0.75131]
[1727219434806,0.75719,2662.4,2662.2,0.3757]
[1727219435011,0.37559,2662.3,2662.0,0.37563]
[1727219435199,2.80719,2662.4,2662.0,0.37563]
[1727219435405,0.37559,2662.3,2662.0,0.37563]
[1727219435607,0.37563,2662.1,2661.9,3.2078]
[1727219435807,0.77543,2662.0,2661.7,0.77287]
[1727219436013,0.3807,2661.9,2661.7,0.37567]
[1727219436317,0.7802,2661.9,2661.7,0.37568]
[1727219437208,0.7802,2661.9,2661.5,0.7501]
[1727219437410,0.37567,2661.8,2661.5,1.1258]
[1727219438715,0.7802,2661.9,2661.5,0.7501]
[1727219438913,0.3757,2661.6,2661.3,0.37573]
[1727219439319,0.3935,2661.5,2661.3,0.37573]
[1727219442007,0.3935,2661.5,2661.4,0.37572]
[1727219442212,0.3935,2661.5,2661.3,0.37572]
[1727219443009,0.3935,2661.5,2661.2,0.783]
[1727219443218,0.37568,2661.7,2661.4,0.37572]
[1727219444723,0.3757,2661.6,2661.3,0.37573]
[1727219446125,0.3757,2661.6,2661.2,0.783]
[1727219446316,0.3757,2661.6,2661.4,0.37572]
[1727219448422,0.37571,2661.5,2661.3,0.37573]
[1727219451825,0.3757,2661.6,2661.3,0.37573]
[1727219452031,0.3757,2661.6,2661.3,1.35997879]
[1727219455128,0.3757,2661.6,2661.4,0.37572]
[1727219455430,0.37571,2661.5,2661.3,1.35996879]
[1727219455834,0.3757,2661.6,2661.4,0.37571]
[1727219457235,0.3757,2661.6,2661.4,1.35995879]
[1727219457431,0.3757,2661.5,2661.3,1.35996879]
[1727219458326,0.3757,2661.5,2661.3,0.98424879]
[1727219458327,5.47282,2661.4,2661.3,0.98424879]
[1727219458530,0.37576,2661.1,2661.0,0.98424879]
[1727219458733,0.93934,2661.3,2660.9,0.98424879]
[1727219458734,0.37577,2661.0,2660.9,0.98424879]
[1727219458934,0.37577,2661.1,2660.9,0.37578]
[1727219459735,0.37578,2661.0,2660.8,5.33433879]
[1727219459935,4.53359,2660.9,2660.8,0.98424879]
[1727219460238,4.53359,2660.9,2659.9,1.47637319]
[1727219460239,0.37592,2660.0,2659.9,1.47637319]
[1727219460427,0.37592,2660.0,2659.8,1.94936453]
[1727219460428,2.42592,2660.0,2659.8,0.37594]
[1727219460629,5.2578,2660.0,2659.4,1.47637319]
[1727219460829,5.2578,2660.0,2659.2,1.94936453]
[1727219460830,0.37598,2659.6,2659.3,1.85238319]
[1727219461142,0.37598,2659.6,2659.3,0.37601]
[1727219462238,0.37597,2659.7,2659.3,0.37601]
[1727219462432,0.37598,2659.6,2659.3,0.37601]
[1727219463834,3.2078,2660.0,2659.2,2.4398]
[1727219464140,0.37592,2660.0,2659.7,3.58375]
[1727219464337,0.37592,2660.0,2659.8,0.3905]
[1727219464536,0.37591,2660.1,2659.8,0.76644]
[1727219465337,3.2078,2660.3,2660.1,0.3759]
[1727219465641,0.37585,2660.5,2660.2,0.37588]
[1727219465841,1.81894,2660.6,2660.3,0.3905]
[1727219466045,0.37585,2660.5,2660.3,0.3905]
[1727219468249,0.37586,2660.4,2660.3,0.3905]
[1727219469240,0.37585,2660.5,2660.3,0.3905]
[1727219472555,0.37586,2660.4,2660.3,0.3905]
[1727219473239,0.37589,2660.2,2659.8,0.3857]
[1727219473449,0.37591,2660.1,2659.9,0.77793]
[1727219474446,0.37591,2660.1,2659.9,0.402]
[1727219475645,6.19747,2660.4,2659.6,0.37597]
[1727219475646,0.37593,2659.9,2659.6,0.37597]
[1727219475944,0.37593,2659.9,2659.4,0.37599]
[1727219475945,0.37596,2659.7,2659.4,0.37599]
[1727219476148,0.3851,2659.8,2659.3,0.77801]
[1727219476340,0.37598,2659.6,2659.3,0.77801]
[1727219480239,0.37599,2659.5,2659.3,0.77801]
[1727219481444,0.37598,2659.6,2659.3,0.77801]
[1727219481643,0.37598,2659.6,2659.3,0.402]
[1727219481841,0.37598,2659.6,2659.3,0.778]
[1727219482454,0.37597,2659.7,2659.4,0.376]
[1727219482656,0.37596,2659.7,2659.4,0.376]
[1727219482857,0.37596,2659.7,2659.5,0.37598]
[1727219483052,3.9945,2659.8,2659.5,0.37598]
[1727219483254,5.2578,2660.1,2659.6,0.37597]
[1727219483458,0.93974,2660.2,2659.7,0.3684]
[1727219483459,0.7902,2660.2,2659.7,0.3684]
[1727219483650,0.7902,2660.2,2659.7,1.1392]
[1727219483651,0.37591,2660.1,2659.7,1.1392]
[1727219483951,1.815,2660.2,2659.9,0.37592]
[1727219484149,0.37591,2660.1,2659.8,0.37593]
[1727219484855,0.37591,2660.1,2659.8,0.37594]
[1727219485256,0.37591,2660.1,2659.7,1.1392]
[1727219485257,0.37589,2660.2,2659.7,1.1392]
[1727219485454,0.37589,2660.2,2659.9,0.37592]
[1727219486149,7.24747,2660.4,2659.9,0.37592]
[1727219486360,0.3759,2660.1,2659.9,0.37592]
[1727219488153,6.19747,2660.4,2660.0,0.37592]
[1727219488358,0.37588,2660.3,2660.1,0.3798]
[1727219488544,0.37589,2660.2,2660.1,0.3798]
[1727219488748,5.2578,2660.4,2660.1,0.3798]
[1727219488749,0.37588,2660.3,2660.1,0.3798]
[1727219491752,0.3786,2660.7,2660.1,4.139]
[1727219492063,0.3786,2660.7,2660.4,0.37585]
[1727219492064,0.75442,2660.7,2660.4,0.37585]
[1727219492262,0.75442,2660.7,2660.5,0.3847]
[1727219492466,0.3786,2660.7,2660.5,0.76054]
[1727219492758,0.75442,2660.7,2660.5,0.3847]
[1727219493258,0.75442,2660.7,2660.2,3.2078]
[1727219493259,2.05,2660.6,2660.2,3.2078]
[1727219493562,2.42587,2660.3,2660.2,3.2078]
[1727219494259,2.42587,2660.3,2660.0,0.37591]
[1727219494960,0.37589,2660.2,2660.0,0.37591]
[1727219495462,0.37592,2660.0,2659.9,0.3919]
[1727219496059,2.79011,2660.1,2659.9,0.3919]
[1727219496763,0.37592,2660.0,2659.9,0.3919]
[1727219499363,2.79011,2660.1,2659.9,0.76782]
[1727219499660,0.74011,2660.1,2659.9,0.76782]
[1727219501959,0.74011,2660.1,2659.9,0.3919]
[1727219502458,0.3642,2660.1,2659.9,0.3919]
[1727219502656,0.37588,2660.3,2660.1,0.3759]
[1727219502855,0.37588,2660.3,2660.2,0.3645]
[1727219503554,2.24211942,2660.4,2660.2,0.3645]
[1727219503754,0.77416,2660.4,2660.2,0.3645]
[1727219504152,0.37587,2660.3,2660.2,0.3645]
[1727219505363,1.84382942,2660.3,2660.2,0.3645]
[1727219506169,2.03184342,2660.3,2660.2,0.3645]
[1727219508672,0.563884,2660.3,2660.2,0.3645]
[1727219509967,0.188014,2660.3,2660.2,0.74039]
[1727219510266,1.47600814,2660.4,2660.3,0.37587]
[1727219510473,1.47600814,2660.6,2660.5,0.37585]
[1727219510968,1.47600814,2660.7,2660.5,0.37585]
[1727219511158,1.66399216,2660.7,2660.5,0.37585]
[1727219511363,1.66399216,2660.7,2660.6,0.3992]
[1727219512075,0.3686,2660.9,2660.6,4.1576]
[1727219512076,1.47600814,2660.9,2660.6,4.1576]
[1727219512369,1.47600814,2661.0,2660.7,0.37581]
[1727219512560,1.47600814,2661.1,2660.8,0.3936]
[1727219512762,1.47600814,2661.1,2660.8,0.76939]
[1727219512961,1.47600814,2661.1,2660.9,0.37578]
[1727219513573,2.25305814,2661.2,2660.9,0.37578]
[1727219514261,1.47600814,2661.1,2660.9,0.37578]
[1727219514457,1.87730814,2661.2,2661.0,0.37577]
[1727219514662,1.87730814,2661.2,2661.1,0.3727]
[1727219515470,0.4013,2661.2,2661.1,0.3727]
[1727219516061,1.47600814,2661.3,2661.1,0.3727]
[1727219517464,0.37573,2661.3,2661.1,0.3727]
[1727219517873,0.37573,2661.3,2660.7,3.2078]
[1727219517874,0.37582,2660.8,2660.3,1.47637319]
[1727219518071,0.3818,2660.7,2660.4,0.76516]
[1727219518265,0.75763,2660.7,2660.4,0.3893]
[1727219518665,1.47399998,2660.9,2660.4,0.3893]
[1727219518872,2.23326998,2661.0,2660.5,0.37585]
[1727219519474,0.75927,2661.0,2660.5,0.37585]
[1727219521874,2.23326998,2661.0,2660.5,0.37585]
[1727219522104,0.75927,2661.0,2660.5,0.37585]
[1727219523070,0.3758,2660.9,2660.4,3.97295]
[1727219524282,0.3758,2660.9,2660.5,0.37584]
[1727219525573,0.3835,2661.0,2660.5,0.37584]
[1727219525574,0.3758,2660.8,2660.5,0.37584]
[1727219526381,0.3758,2660.8,2660.4,3.5971]
[1727219526382,0.98249924,2660.9,2660.4,3.5971]
[1727219526588,0.3758,2660.9,2660.4,3.5971]
[1727219526874,0.3758,2660.9,2660.5,0.37584]
[1727219527277,0.3758,2660.9,2660.4,0.3893]
[1727219527278,2.05,2660.9,2660.4,0.3893]
[1727219527479,0.93966,2660.4,2659.8,1.47637319]
[1727219527680,0.93966,2660.4,2659.7,1.94936453]
[1727219527681,2.05,2660.2,2659.7,0.7337]
[1727219527884,0.93977,2660.1,2659.7,0.7337]
[1727219528180,0.37594,2659.9,2659.7,0.7337]
[1727219529882,0.37592,2660.0,2659.7,1.10965]
[1727219533886,0.37593,2659.9,2659.7,1.10965]
[1727219534202,0.98249924,2660.2,2659.7,2.7837]
[1727219534378,1.47399998,2660.3,2660.1,0.3759]
[1727219534379,0.98249924,2660.3,2660.1,0.3759]
[1727219534885,1.35836924,2660.4,2660.1,0.3759]
[1727219535087,1.35836924,2660.4,2660.2,0.37589]
[1727219535088,0.98249924,2660.4,2660.2,0.37589]
[1727219535386,2.11064924,2660.5,2660.2,0.37589]
[1727219535885,1.35835924,2660.4,2660.1,0.3759]
[1727219537076,0.37,2660.6,2660.2,5.8092]
[1727219537077,0.98249924,2660.6,2660.2,5.8092]
[1727219537283,0.98249924,2660.7,2660.6,0.37583]
[1727219537583,1.37663708,2660.9,2660.6,0.37583]
[1727219537782,1.75242708,2660.9,2660.5,0.37584]
[1727219538293,1.75242708,2660.9,2660.3,0.3639]
[1727219538487,1.75242708,2660.9,2660.5,0.37583]
[1727219538795,1.37663708,2660.9,2660.6,0.37582]
[1727219539184,0.3937,2660.9,2660.6,0.37582]
[1727219541793,0.76949,2660.9,2660.5,0.37584]
[1727219542098,0.3937,2660.9,2660.6,0.37583]
[1727219543886,0.76949,2660.9,2660.3,3.5717]
[1727219544282,0.3937,2660.9,2660.6,0.37583]
[1727219544594,1.37663708,2660.9,2660.6,0.37583]
[1727219544790,0.3937,2660.9,2660.6,0.37583]
[1727219545391,0.3937,2660.9,2660.3,3.67703739]
[1727219545596,0.3937,2660.9,2660.6,0.37583]
[1727219545787,0.3937,2660.9,2660.4,2.05]
[1727219545988,0.3937,2660.9,2660.4,2.98964]
[1727219546285,0.3937,2660.9,2660.7,0.37582]
[1727219546497,0.3937,2660.9,2660.6,0.37582]
[1727219546706,0.3937,2660.9,2660.7,0.37582]
[1727219548191,2.05,2660.8,2660.3,0.3639]
[1727219548388,2.05,2660.8,2660.5,0.37584]
[1727219548683,2.05,2660.8,2660.3,0.3639]
[1727219548684,0.3666,2660.7,2660.3,0.3639]
[1727219548882,0.37583,2660.6,2660.3,0.3639]
[1727219549093,0.3877,2660.6,2660.3,0.3639]
[1727219549892,0.76353,2660.6,2660.3,0.3639]
[1727219550289,0.3877,2660.6,2660.3,0.73977]
[1727219551003,0.3877,2660.6,2660.5,0.37585]
[1727219551794,1.37663708,2660.9,2660.6,0.37582]
[1727219552005,1.37663708,2660.9,2660.7,0.77102]
[1727219552293,0.3937,2660.9,2660.7,0.77102]
[1727219553399,1.37663708,2660.9,2660.7,0.77102]
[1727219553799,0.3937,2660.9,2660.7,0.77102]
[1727219554291,0.3937,2660.9,2660.8,0.3758]
[1727219555397,0.3937,2660.9,2660.7,0.3952]
[1727219555698,0.3937,2660.9,2660.7,0.771]
[1727219556085,0.3937,2660.9,2660.8,0.3758]
[1727219556298,0.3937,2660.9,2660.7,0.77101]
[1727219556487,0.3937,2660.9,2660.7,0.3952]
[1727219556692,0.3937,2660.9,2660.7,0.77101]
[1727219567604,0.3937,2660.9,2660.8,0.3758]
[1727219568209,0.3937,2660.9,2660.7,0.77101]
[1727219568404,0.3937,2660.9,2660.8,0.3758]
[1727219570006,0.98293708,2661.0,2660.9,0.37579]
[1727219570210,1.73893708,2661.5,2661.4,0.37572]
[1727219570402,1.73893708,2661.5,2661.0,0.93944]
[1727219570602,0.756,2661.5,2661.1,0.4025]
[1727219570803,0.756,2661.5,2661.4,0.37572]
[1727219571008,0.756,2661.5,2660.9,5.17306521]
[1727219571218,3.03293708,2661.1,2660.4,3.42573772]
[1727219571508,4.46354998,2660.7,2660.0,0.4025]
[1727219571702,1.74567708,2660.6,2660.2,0.37587]
[1727219571904,0.3984,2660.5,2660.2,0.37587]
[1727219572114,0.3984,2660.5,2660.0,0.4025]
[1727219572115,0.98293708,2660.6,2660.1,2.98976]
[1727219572409,1.38133708,2660.8,2660.5,0.37584]
[1727219572721,1.38133708,2660.8,2660.6,0.4025]
[1727219572917,1.38133708,2660.8,2660.6,0.77833]
[1727219573711,3.5951,2661.0,2660.6,2.4525]
[1727219573712,0.98293708,2661.0,2660.6,2.4525]
[1727219574015,1.35868708,2661.2,2660.9,0.37578]
[1727219574315,1.35868708,2661.2,2661.0,0.4022]
[1727219575406,0.98293708,2661.3,2661.0,6.2098]
[1727219575612,0.98293708,2661.5,2661.1,3.9606]
[1727219575917,0.98293708,2661.5,2661.3,0.37573]
[1727219576107,0.37576,2661.1,2661.0,0.4022]
[1727219578105,0.74086,2661.1,2661.0,0.4022]
[1727219578302,0.74086,2661.1,2661.0,0.77797]
[1727219578303,0.3651,2661.1,2661.0,0.77797]
[1727219578917,0.98301324,2661.2,2661.1,0.37576]
[1727219579108,1.35151324,2661.3,2661.2,0.37575]
[1727219579310,1.35151324,2661.3,2661.0,0.4022]
[1727219579311,0.37575,2661.2,2661.0,0.4022]
[1727219579506,0.98301324,2661.3,2661.2,0.37575]
[1727219579915,0.98301324,2661.4,2661.3,0.37573]
[1727219581311,0.98301324,2661.5,2661.3,0.37573]
[1727219581618,0.98301324,2661.4,2661.3,0.37573]
[1727219582417,0.98360768,2661.4,2661.2,1.37150072]
[1727219582716,0.98360768,2661.5,2661.4,0.37572]
[1727219584729,0.98360768,2661.5,2661.3,0.37572]
[1727219584922,0.37573,2661.3,2661.2,0.98390072]
[1727219585122,0.37582,2660.7,2660.6,0.98390072]
[1727219585322,0.98295258,2660.7,2660.4,0.98390072]
[1727219585621,0.37585,2660.5,2660.3,0.98390072]
[1727219586630,2.12509258,2660.6,2660.2,1.35979072]
[1727219586833,2.12509258,2660.6,2660.3,0.98390072]
[1727219587016,2.12509258,2660.6,2660.3,0.37587]
[1727219587222,0.7663,2660.6,2660.3,1.35976072]
[1727219587434,0.3953,2660.6,2660.4,0.37585]
[1727219587730,0.3953,2660.6,2660.3,1.35977072]
[1727219588317,1.35877258,2660.7,2660.3,0.98390072]
[1727219588318,0.98295258,2660.7,2660.3,0.98390072]
[1727219588523,1.47442887,2660.8,2660.2,1.47637319]
[1727219588524,0.98295258,2660.8,2660.6,0.37583]
[1727219589032,0.98295258,2660.9,2660.6,0.37583]
[1727219589328,0.98295258,2660.8,2660.5,1.35974072]
[1727219589531,0.98295258,2660.9,2660.5,1.35974072]
[1727219589728,1.35874258,2660.9,2660.5,1.35974072]
[1727219590522,0.3758,2660.8,2660.5,0.98390072]
[1727219590824,1.35876258,2660.8,2660.5,0.98390072]
[1727219591033,1.35876258,2660.8,2660.4,4.56755072]
[1727219592045,0.3988,2660.7,2660.4,4.56755072]
[1727219592237,0.77462,2660.7,2660.4,4.19170072]
[1727219592546,0.77462,2660.7,2660.4,4.56756072]
[1727219593034,1.75757258,2660.7,2660.4,0.37586]
[1727219593237,1.75757258,2660.7,2660.4,1.35976072]
[1727219593433,1.75757258,2660.7,2660.4,0.37586]
[1727219593943,1.75757258,2660.7,2660.4,1.35976072]
[1727219595446,1.75757258,2660.7,2660.4,0.37586]
[1727219595643,1.75757258,2660.7,2660.4,1.35976072]
[1727219596245,1.38175258,2660.7,2660.4,1.35976072]
[1727219596445,0.3988,2660.7,2660.4,1.35976072]
[1727219596948,0.77462,2660.7,2660.4,1.35976072]
[1727219597945,0.77462,2660.7,2660.5,0.98390072]
[1727219598148,0.77462,2660.7,2660.4,1.35976072]
[1727219598542,0.77462,2660.7,2660.4,0.98390072]
[1727219598948,1.75757258,2660.7,2660.4,0.98390072]
[1727219599148,0.3847,2660.6,2660.4,1.35976072]
[1727219599449,0.3847,2660.6,2660.4,1.73956072]
[1727219599945,0.3847,2660.6,2660.4,1.73955072]
[1727219600340,0.3847,2660.6,2660.4,4.94735072]
[1727219601051,0.3847,2660.6,2660.4,1.36370072]
[1727219601441,0.3847,2660.6,2660.4,1.73956072]
[1727219604647,0.98295258,2660.8,2660.4,6.62150072]
[1727219604851,0.98295258,2660.8,2660.6,0.37583]
[1727219605156,0.98295258,2660.8,2660.7,0.37582]
[1727219605549,0.98295258,2660.9,2660.8,0.3758]
[1727219605742,0.98295258,2661.0,2660.9,0.37579]
[1727219605948,0.98295258,2661.0,2660.8,0.37579]
[1727219606357,1.84022887,2661.1,2660.8,0.37579]
[1727219606358,1.34875258,2661.1,2660.8,0.37579]
[1727219606756,1.34875258,2661.1,2660.9,0.37578]
[1727219608449,0.3658,2661.1,2660.9,0.37578]
[1727219609354,1.34875258,2661.1,2660.9,0.37578]
[1727219609947,1.34875258,2661.1,2660.8,0.98390072]
[1727219609948,0.37579,2660.9,2660.8,0.98390072]
[1727219610152,0.37581,2660.8,2660.5,0.98390072]
[1727219610355,1.35876258,2660.8,2660.5,0.98390072]
[1727219610757,1.35876258,2660.8,2660.4,1.46424081]
[1727219611264,1.35876258,2660.8,2660.5,0.37584]
[1727219611459,0.37581,2660.8,2660.5,1.35974072]
[1727219611961,4.19075258,2660.9,2660.6,0.37583]
[1727219611962,1.35875258,2660.9,2660.6,0.37583]
[1727219612158,1.35875258,2660.9,2660.7,0.3715]
[1727219612861,0.3758,2660.8,2660.7,0.3715]
[1727219613055,1.35875258,2660.9,2660.7,0.3715]
[1727219614560,0.3758,2660.8,2660.5,0.98390072]
[1727219614770,0.3758,2660.8,2660.5,1.35974072]
[1727219615067,0.98295258,2660.9,2660.5,1.35974072]
[1727219615068,1.35875258,2660.9,2660.5,1.35974072]
[1727219615368,0.37581,2660.8,2660.5,1.35974072]
[1727219615568,1.35875258,2660.9,2660.5,1.35974072]
[1727219616667,0.98295258,2660.9,2660.5,1.35974072]
[1727219617451,1.35875258,2660.9,2660.5,1.35974072]
[1727219617655,1.35875258,2660.9,2660.6,0.37583]
[1727219617861,0.98295258,2660.9,2660.6,0.37583]
[1727219618065,0.98295258,2660.9,2660.6,1.35973072]
[1727219618271,1.35875258,2660.9,2660.6,0.98390072]
[1727219618456,1.35875258,2660.9,2660.4,5.15636328]
[1727219618457,0.3758,2660.8,2660.5,0.98390072]
[1727219618654,0.3758,2660.8,2660.5,1.35974072]
[1727219618866,1.35875258,2660.8,2660.5,1.35974072]
[1727219619359,1.35875258,2660.8,2660.5,1.74164072]
[1727219620066,0.98295258,2660.8,2660.5,1.36580072]
[1727219620253,0.98295258,2660.9,2660.6,0.98390072]
[1727219620667,0.98295258,2660.9,2660.7,0.3758]
[1727219620967,0.4033,2661.0,2660.7,0.3758]
[1727219620968,1.38625258,2661.0,2660.7,0.3758]
[1727219621564,0.98295258,2660.9,2660.7,0.3758]
[1727219621769,0.4033,2661.0,2660.7,0.3758]
[1727219621770,1.38625258,2661.0,2660.7,0.3758]
[1727219622470,0.98295258,2660.9,2660.7,0.3758]
[1727219622669,0.98295258,2660.9,2660.6,1.35972072]
[1727219622975,0.98295258,2660.9,2660.7,0.37582]
[1727219625678,1.35875258,2660.8,2660.6,0.98390072]
[1727219625863,1.35875258,2660.9,2660.6,0.98390072]
[1727219626058,1.35875258,2660.8,2660.6,0.98390072]
[1727219626664,0.98295258,2660.8,2660.6,1.35973072]
[1727219627175,1.35876258,2660.8,2660.6,0.98390072]
[1727219627564,1.35876258,2660.8,2660.5,1.74164072]
[1727219627878,1.35876258,2660.8,2660.6,0.98390072]
[1727219628167,1.35877258,2660.7,2660.6,0.98390072]
[1727219628369,1.35877258,2660.7,2660.5,2.23411319]
[1727219628370,2.25501,2660.6,2660.5,0.12206319]
[1727219628571,0.37593,2659.9,2659.6,1.13207]
[1727219628770,1.35948117,2659.8,2659.6,1.13207]
[1727219628976,1.47529675,2659.9,2659.6,0.3706]
[1727219628977,1.35949117,2659.7,2659.6,0.3706]
[1727219629277,0.37598,2659.6,2659.4,0.376]
[1727219629577,0.98300509,2659.6,2659.4,0.376]
[1727219630870,0.376,2659.5,2659.2,3.58383]
[1727219631070,3.03300509,2659.6,2659.1,1.1377]
[1727219631268,3.03300509,2659.6,2659.1,1.51374]
[1727219631269,0.37601,2659.4,2659.1,1.51374]
[1727219632868,0.37602,2659.3,2659.1,1.1377]
[1727219633174,0.37601,2659.4,2659.1,1.51374]
[1727219635075,0.3899,2659.5,2659.3,0.37601]
[1727219635269,0.37599,2659.6,2659.3,0.37601]
[1727219635484,0.37598,2659.6,2659.2,0.37603]
[1727219635671,0.37599,2659.5,2659.2,0.37603]
[1727219635879,0.37598,2659.6,2659.2,0.37603]
[1727219636172,0.37599,2659.5,2659.2,0.37603]
[1727219637268,0.37598,2659.6,2659.1,1.1377]
[1727219637478,0.37598,2659.6,2659.2,0.37602]
[1727219637979,0.37598,2659.6,2659.3,0.37601]
[1727219638673,0.3727,2659.8,2659.2,2.05]
[1727219638868,0.3727,2659.8,2659.4,0.376]
[1727219638869,0.74865,2659.8,2659.4,0.376]
[1727219639068,0.37596,2659.7,2659.3,0.37601]
[1727219640572,2.05,2659.6,2659.1,1.14314]
[1727219640777,2.05,2659.6,2659.1,0.7671]
[1727219641080,0.37601,2659.4,2659.1,1.14314]
[1727219642875,0.37602,2659.3,2659.1,1.14314]
[1727219643788,2.05,2659.6,2659.1,1.14314]
[1727219644176,0.37601,2659.4,2659.1,1.14314]
[1727219647276,3.2078,2659.6,2659.3,0.37601]
[1727219647476,0.37596,2659.7,2659.4,0.3646]
[1727219647689,0.37596,2659.7,2659.5,0.77838]
[1727219647985,0.37596,2659.7,2659.6,0.3828]
[1727219648391,3.2078,2660.1,2659.6,0.3828]
[1727219648598,3.2078,2660.1,2659.7,0.37595]
[1727219648599,0.37592,2660.0,2659.7,0.37595]
[1727219648888,0.37593,2659.9,2659.7,0.37595]
[1727219649477,0.37593,2659.9,2659.6,0.75876]
[1727219651474,1.71113,2660.2,2659.6,0.75877]
[1727219651677,0.37593,2659.9,2659.6,0.75877]
[1727219651880,0.37595,2659.8,2659.6,0.3828]
[1727219652480,5.2578,2660.1,2659.6,0.3828]
[1727219652691,0.37594,2659.9,2659.6,0.75877]
[1727219658286,0.37593,2660.0,2659.6,0.75877]
[1727219658486,2.98978,2660.1,2659.6,0.3828]
[1727219658890,0.37595,2659.8,2659.6,0.3828]
[1727219659091,2.98978,2660.1,2659.6,0.75876]
[1727219659289,0.37593,2659.9,2659.6,0.75876]
[1727219659589,2.98978,2660.1,2659.6,0.3828]
[1727219659785,0.37595,2659.8,2659.6,0.3828]
[1727219659990,0.37594,2659.9,2659.6,0.75877]
[1727219665099,0.37592,2660.0,2659.7,0.37596]
[1727219665485,0.37593,2659.9,2659.6,0.75876]
[1727219666689,1.75440509,2660.2,2659.7,0.37596]
[1727219666690,0.37592,2660.0,2659.7,0.37596]
[1727219666894,1.75440509,2660.2,2659.6,0.75876]
[1727219667286,0.37593,2660.0,2659.6,0.75876]
[1727219667992,0.37593,2659.9,2659.6,0.75876]
[1727219671287,2.30892509,2660.0,2659.7,0.37596]
[1727219671492,0.98300509,2659.9,2659.7,0.37596]
[1727219671895,0.37593,2659.9,2659.7,0.37596]
[1727219672192,0.37593,2659.9,2659.6,0.75876]
[1727219672193,1.35893509,2659.9,2659.6,0.75876]
[1727219672401,0.98300509,2659.9,2659.7,0.37595]
[1727219672894,0.98300509,2659.9,2659.5,0.4024]
[1727219672895,0.95,2659.8,2659.5,0.4024]
[1727219673102,0.37599,2659.5,2659.4,0.3646]
[1727219673302,2.80128675,2659.5,2659.4,0.3646]
[1727219673995,2.98936003,2659.5,2659.4,0.3646]
[1727219674200,0.376,2659.4,2659.1,4.0103]
[1727219674386,0.98492508,2659.2,2659.1,4.0103]
[1727219674700,0.98492508,2659.2,2659.1,4.38634]
[1727219674887,0.98492508,2659.2,2659.1,4.0103]
[1727219675285,2.24289762,2659.4,2659.1,4.0103]
[1727219675286,0.98492508,2659.3,2659.1,4.0103]
[1727219676089,0.98492508,2659.3,2659.1,4.38634]
[1727219677698,0.98492508,2659.3,2659.1,4.0103]
[1727219678306,0.98492508,2659.3,2659.1,0.8025]
[1727219679092,1.36094508,2659.3,2659.1,0.8025]
[1727219679899,0.37603,2659.2,2659.1,0.8025]